[Event "Swedish Championship O65 2022"]
[Site "Uppsala"]
[Date "2022.07.07"]
[Round "6.5"]
[White "Ekelund, Kurt"]
[Black "Marttala, Thomas"]
[Result "0-1"]
[ECO "B83"]
[WhiteElo "1939"]
[BlackElo "2164"]
[Annotator "RC"]
[PlyCount "64"]
[EventDate "2022.07.01"]
[EventType "tourn"]
[EventCountry "SWE"]
[SourceTitle "playchess.com"]
[Source "ChessBase"]
[SourceQuality "1"]
[TimeControl "40/5400+30:1800+30"]

1. e4 {[%emt 0:00:02]} c5 {[%emt 0:00:30]} 2. Nf3 {[%emt 0:00:38]} Nc6 {[%emt 0:00:09]} 3. Nc3 {[%emt 0:00:32]} d6 {[%emt 0:04:58]} 4. d4 {[%emt 0:00:28]} cxd4 {[%emt 0:00:12]} 5. Nxd4 {[%emt 0:00:07]} e6 {[%emt 0:02:53]} 6. Be2 {[%emt 0:00:31]} Be7 {[%emt 0:02:56]} 7. Be3 {[%emt 0:00:37]} Nf6 {[%emt 0:00:47]} 8. f4 {[%emt 0:00:14]} Bd7 {[%emt 0:01:02]} 9. O-O {[%emt 0:00:14]} O-O {[%emt 0:00:33]} 10. Qe1 {[%emt 0:01:26]} e5 {[%emt 0:14:51]} 11. Nxc6 {[%emt 0:09:08]} Bxc6 {[%emt 0:00:58]} 12. fxe5 {[%emt 0:00:09]} dxe5 {[%emt 0:00:10]} 13. Rd1 {[%emt 0:00:31]} Qc7 {[%emt 0:10:54]} 14. Nd5 {[%emt 0:02:06]} Bxd5 {[%emt 0:02:36]} 15. exd5 {[%emt 0:00:23]} Bc5 {[%emt 0:08:14]} 16. Qf2 {[%emt 0:00:34]} Ne4 {[%emt 0:00:43]} 17. Qf3 {[%emt 0:00:09]} f5 {[%emt 0:00:43]} 18. Kh1 {[%emt 0:01:18]} Nd6 {[%emt 0:03:11]} 19. c3 {[%emt 0:03:08]} a5 {[%emt 0:00:34]} 20. a3 {[%emt 0:00:54]} a4 {[%emt 0:00:23]} 21. Bxc5 {[%emt 0:00:31]} Qxc5 {[%emt 0:00:09]} 22. Qg3 {[%emt 0:00:16]} Rf6 {[%emt 0:06:06]} 23. Bd3 {[%emt 0:02:53]} Re8 {[%emt 0:06:21]} 24. Bc2 {[%emt 0:01:48]} b5 {[%emt 0:00:53]} 25. Qh3 {[%emt 0:00:39]} e4 {[%emt 0:10:10]} 26. Rd4 {[%emt 0:01:37]} Rh6 {[%emt 0:05:17]} 27. Qg3 {[%emt 0:05:50]} Rg6 {[%emt 0:00:25]} 28. Qh3 {[%emt 0:00:10]} Rf6 {[%emt 0:03:26]} 29. Qg3 {[%emt 0:04:21]} Rg6 {[%emt 0:04:17]} 30. Qh3 {[%emt 0:03:21]} Re5 {[%emt 0:00:42]} 31. Qh4 {[%emt 0:02:56]} Rf6 {[%emt 0:01:13]} 32. b4 {[%emt 0:01:13]} Qxc3 {[%emt 0:00:46]} 0-1

[Event "Swedish Championship O65 2022"]
[Site "Uppsala"]
[Date "2022.07.08"]
[Round "7.1"]
[White "Gillefalk, Bjorn"]
[Black "Soderberg, Per"]
[Result "0-1"]
[ECO "D37"]
[WhiteElo "2047"]
[BlackElo "2111"]
[Annotator "NA RC"]
[PlyCount "90"]
[EventDate "2022.07.01"]
[EventType "tourn"]
[EventCountry "SWE"]
[SourceTitle "playchess.com"]
[Source "ChessBase"]
[SourceQuality "1"]
[TimeControl "40/5400+30:1800+30"]

1. d4 {[%emt 0:00:06]} d5 {[%emt 0:00:14]} 2. c4 {[%emt 0:00:08]} e6 {[%emt 0:00:06]} 3. Nf3 {[%emt 0:00:09]} a6 {[%emt 0:00:49]} 4. cxd5 {[%emt 0:06:19]} exd5 {[%emt 0:00:09]} 5. Nc3 {[%emt 0:00:29]} Nf6 {[%emt 0:00:19]} 6. Bg5 {[%emt 0:02:54]} Be7 {[%emt 0:02:10]} 7. e3 {[%emt 0:02:40]} h6 {[%emt 0:00:28]} 8. Bh4 {[%emt 0:03:15]} O-O {[%emt 0:00:33]} 9. Bd3 {[%emt 0:05:03]} Nbd7 {[%emt 0:05:50]} 10. Bg3 {[%emt 0:07:42]} c5 {[%emt 0:01:25]} 11. O-O {[%emt 0:02:32]} b5 {[%emt 0:08:28]} 12. dxc5 {[%emt 0:09:59]} Nxc5 {[%emt 0:02:23]} 13. Nd4 {[%emt 0:00:11]} Bb7 {[%emt 0:00:32]} 14. Nf5 {[%emt 0:01:22]} Nxd3 {[%emt 0:06:01]} 15. Qxd3 {[%emt 0:02:33]} Re8 {[%emt 0:02:00]} 16. Be5 {[%emt 0:06:32]} Bf8 {[%emt 0:05:09]} 17. Qd4 {[%emt 0:06:04]} Re6 {[%emt 0:03:10]} 18. Rfd1 {[%emt 0:13:19]} Rc8 {[%emt 0:10:12]} 19. e4 {[%emt 0:08:19]} Nxe4 {[%emt 0:20:40]} 20. Nxe4 {[%emt 0:04:22]} Rc4 {[%emt 0:00:17]} 21. Qa7 {[%emt 0:12:50]} Rxe5 {[%emt 0:05:19]} 22. Qxb7 {[%emt 0:00:17]} Rcxe4 {[%emt 0:02:15]} 23. Ng3 {[%emt 0:00:21]} Rb4 {[%emt 0:01:05]} 24. b3 {[%emt 0:00:31]} Qf6 {[%emt 0:01:08]} 25. Rac1 {[%emt 0:00:11]} Rf4 {[%emt 0:04:26]} 26. Rc6 {[%emt 0:01:07]} Qe7 {[%emt 0:05:28]} 27. Qxe7 {[%emt 0:00:19]} Bxe7 {[%emt 0:00:10]} 28. Rxa6 {[%emt 0:00:18]} Bc5 {[%emt 0:00:22]} 29. Rf1 {[%emt 0:01:21]} d4 {[%emt 0:01:17]} 30. Ra8+ {[%emt 0:00:41]} Kh7 {[%emt 0:00:02]} 31. Rd8 {[%emt 0:00:09]} Kg6 {[%emt 0:01:11]} 32. Rd1 {[%emt 0:00:33]} b4 {[%emt 0:02:29]} 33. Kf1 {[%emt 0:01:30]} Rf6 {[%emt 0:03:37]} 34. f3 {[%emt 0:00:32]} Ra6 {[%emt 0:00:59]} 35. Rd2 {[%emt 0:00:04]} f5 {[%emt 0:00:46]} 36. Ne2 {[%emt 0:00:20]} Kf6 {[%emt 0:01:31]} 37. Nxd4 {[%emt 0:00:40]} Ke7 {[%emt 0:00:44]} 38. Ne2 {[%emt 0:00:41]} Rae6 {[%emt 0:02:20]} 39. R8d5 {[%emt 0:00:59]} Be3 {[%emt 0:01:05]} 40. Rxe5 {[%emt 0:01:10]} Rxe5 {[%emt 0:00:18]} 41. Rd3 {[%emt 0:30:41]} f4 {[%emt 0:30:38]} 42. g3 {[%emt 0:00:38]} g5 {[%emt 0:00:14]} 43. gxf4 {[%emt 0:00:00]} gxf4 {[%emt 0:00:00]} 44. Nd4 {[%emt 0:00:00]} Rc5 {[%emt 0:00:00]} 45. Kg2 {[%emt 0:00:00]} Kf6 {[%emt 0:00:00]} 0-1

[Event "Swedish Championship O65 2022"]
[Site "Uppsala"]
[Date "2022.07.08"]
[Round "7.2"]
[White "Bellon Lopez, Juan Manuel"]
[Black "Lagerborg, Krister"]
[Result "1/2-1/2"]
[ECO "D00"]
[WhiteElo "2330"]
[BlackElo "2138"]
[Annotator "RC"]
[PlyCount "132"]
[EventDate "2022.07.01"]
[EventType "tourn"]
[EventCountry "SWE"]
[SourceTitle "playchess.com"]
[Source "ChessBase"]
[SourceQuality "1"]
[TimeControl "40/5400+30:1800+30"]

1. d4 {[%emt 0:00:01]} Nf6 {[%emt 0:00:06]} 2. Nf3 {[%emt 0:00:26]} g6 {[%emt 0:00:23]} 3. Nc3 {[%emt 0:02:32]} d5 {[%emt 0:03:04]} 4. Bf4 {[%emt 0:00:15]} Nh5 {[%emt 0:02:04]} 5. Be5 {[%emt 0:05:23]} f6 {[%emt 0:00:41]} 6. Bg3 {[%emt 0:00:02]} Bg7 {[%emt 0:02:32]} 7. e3 {[%emt 0:00:19]} Nxg3 {[%emt 0:03:48]} 8. hxg3 {[%emt 0:00:05]} c6 {[%emt 0:01:32]} 9. e4 {[%emt 0:01:48]} Be6 {[%emt 0:04:30]} 10. Bd3 {[%emt 0:01:17]} Nd7 {[%emt 0:02:46]} 11. exd5 {[%emt 0:00:59]} cxd5 {[%emt 0:01:37]} 12. Rxh7 {[%emt 0:00:23]} Kf7 {[%emt 0:00:27]} 13. Rh4 {[%emt 0:04:35]} Qb6 {[%emt 0:04:06]} 14. Rb1 {[%emt 0:18:11]} g5 {[%emt 0:02:58]} 15. Rh2 {[%emt 0:03:48]} Rxh2 {[%emt 0:07:24]} 16. Nxh2 {[%emt 0:00:05]} Rh8 {[%emt 0:00:21]} 17. Nf1 {[%emt 0:00:04]} Rh1 {[%emt 0:01:21]} 18. g4 {[%emt 0:02:12]} Kf8 {[%emt 0:05:11]} 19. Bf5 {[%emt 0:03:15]} Nb8 {[%emt 0:09:44]} 20. Bxe6 {[%emt 0:03:15]} Qxe6+ {[%emt 0:00:08]} 21. Qe2 {[%emt 0:00:04]} Qd7 {[%emt 0:02:35]} 22. Rd1 {[%emt 0:01:56]} Nc6 {[%emt 0:02:07]} 23. Rd3 {[%emt 0:03:22]} f5 {[%emt 0:02:52]} 24. gxf5 {[%emt 0:08:15]} Nxd4 {[%emt 0:02:16]} 25. Qd1 {[%emt 0:02:24]} Nxf5 {[%emt 0:08:44]} 26. Nxd5 {[%emt 0:03:30]} Bxb2 {[%emt 0:02:43]} 27. Qf3 {[%emt 0:09:57]} Kg7 {[%emt 0:06:06]} 28. g4 {[%emt 0:06:06]} Qe6+ {[%emt 0:00:06]} 29. Nde3 {[%emt 0:03:20]} Nxe3 {[%emt 0:00:07]} 30. Rxe3 {[%emt 0:04:09]} Bc3+ {[%emt 0:00:16]} 31. Ke2 {[%emt 0:00:01]} Qc4+ {[%emt 0:00:13]} 32. Rd3 {[%emt 0:00:00]} Qe6+ {[%emt 0:02:27]} 33. Re3 {[%emt 0:06:12]} Qc4+ {[%emt 0:00:09]} 34. Rd3 {[%emt 0:00:02]} Qe6+ {[%emt 0:00:18]} 35. Qe3 {[%emt 0:04:24]} Qxg4+ {[%emt 0:00:25]} 36. f3 {[%emt 0:00:03]} Qg2+ {[%emt 0:00:35]} 37. Qf2 {[%emt 0:00:01]} Qxf2+ {[%emt 0:00:42]} 38. Kxf2 {[%emt 0:00:03]} Bb4 {[%emt 0:00:36]} 39. Rd5 {[%emt 0:02:14]} b6 {[%emt 0:02:16]} 40. Rxg5+ {[%emt 0:00:22]} Kf6 {[%emt 0:00:28]} 41. Rg4 {[%emt 0:30:27]} Bc5+ {[%emt 0:30:46]} 42. Ke2 {[%emt 0:00:08]} Rg1 {[%emt 0:01:55]} 43. Ng3 {[%emt 0:01:55]} Ke5 {[%emt 0:05:18]} 44. Kd3 {[%emt 0:03:44]} Kd5 {[%emt 0:02:17]} 45. c4+ {[%emt 0:00:00]} Kc6 {[%emt 0:00:00]} 46. Ne4 {[%emt 0:00:00]} Rd1+ {[%emt 0:00:00]} 47. Kc2 {[%emt 0:00:00]} Ra1 {[%emt 0:00:00]} 48. Rg6+ {[%emt 0:00:00]} Bd6 {[%emt 0:00:00]} 49. f4 {[%emt 0:00:00]} Rxa2+ {[%emt 0:00:00]} 50. Kd3 {[%emt 0:00:00]} Kd7 {[%emt 0:00:00]} 51. Nxd6 {[%emt 0:00:00]} exd6 {[%emt 0:00:00]} 52. f5 {[%emt 0:00:00]} Ke7 {[%emt 0:00:00]} 53. Re6+ {[%emt 0:00:00]} Kd7 {[%emt 0:00:00]} 54. Ke3 {[%emt 0:00:00]} a5 {[%emt 0:00:00]} 55. Re4 {[%emt 0:00:00]} Rh2 {[%emt 0:00:00]} 56. f6 {[%emt 0:00:00]} Rh7 {[%emt 0:00:00]} 57. Kd4 {[%emt 0:00:00]} Rf7 {[%emt 0:00:00]} 58. Rf4 {[%emt 0:00:00]} Ke6 {[%emt 0:00:00]} 59. Rf1 {[%emt 0:00:00]} Rxf6 {[%emt 0:00:00]} 60. Rb1 {[%emt 0:00:00]} Rf4+ {[%emt 0:00:00]} 61. Kd3 {[%emt 0:00:00]} a4 {[%emt 0:00:00]} 62. Rxb6 {[%emt 0:00:00]} Ke5 {[%emt 0:00:00]} 63. Rb5+ {[%emt 0:00:00]} Ke6 {[%emt 0:00:00]} 64. Ra5 {[%emt 0:00:00]} a3 {[%emt 0:00:00]} 65. Kc3 {[%emt 0:00:00]} Rf3+ {[%emt 0:02:38]} 66. Kb4 {[%emt 0:00:00]} Kd7 {[%emt 0:00:43]} 1/2-1/2

[Event "Swedish Championship O65 2022"]
[Site "Uppsala"]
[Date "2022.07.08"]
[Round "7.3"]
[White "Marttala, Thomas"]
[Black "Alquist, Erik"]
[Result "1/2-1/2"]
[ECO "C07"]
[WhiteElo "2164"]
[BlackElo "1968"]
[Annotator "RC"]
[PlyCount "43"]
[EventDate "2022.07.01"]
[EventType "tourn"]
[EventCountry "SWE"]
[SourceTitle "playchess.com"]
[Source "ChessBase"]
[SourceQuality "1"]
[TimeControl "40/5400+30:1800+30"]

1. e4 {[%emt 0:00:17]} e6 {[%emt 0:00:15]} 2. d4 {[%emt 0:01:39]} d5 {[%emt 0:00:07]} 3. Nd2 {[%emt 0:00:27]} c5 {[%emt 0:00:16]} 4. Ngf3 {[%emt 0:01:01]} cxd4 {[%emt 0:00:30]} 5. exd5 {[%emt 0:00:39]} Qxd5 {[%emt 0:00:13]} 6. Bc4 {[%emt 0:00:16]} Qd6 {[%emt 0:00:24]} 7. O-O {[%emt 0:00:12]} Nf6 {[%emt 0:00:14]} 8. Nb3 {[%emt 0:07:18]} Nc6 {[%emt 0:00:23]} 9. Re1 {[%emt 0:00:36]} Be7 {[%emt 0:01:01]} 10. Nbxd4 {[%emt 0:02:03]} Nxd4 {[%emt 0:00:42]} 11. Qxd4 {[%emt 0:05:58]} Qxd4 {[%emt 0:02:54]} 12. Nxd4 {[%emt 0:00:07]} O-O {[%emt 0:00:34]} 13. Bf4 {[%emt 0:16:54]} Bd7 {[%emt 0:03:28]} 14. Rad1 {[%emt 0:12:20]} Rac8 {[%emt 0:03:36]} 15. Bb3 {[%emt 0:01:04]} Rfe8 {[%emt 0:04:47]} 16. h3 {[%emt 0:00:34]} h6 {[%emt 0:06:00]} 17. c3 {[%emt 0:02:52]} Kf8 {[%emt 0:02:05]} 18. Be5 {[%emt 0:05:10]} Red8 {[%emt 0:04:17]} 19. Nc2 {[%emt 0:08:58]} Bc6 {[%emt 0:01:59]} 20. Bd4 {[%emt 0:00:46]} b6 {[%emt 0:06:34]} 21. Ne3 {[%emt 0:01:14]} Nd5 {[%emt 0:04:36]} 22. Nxd5 {[%emt 0:03:44]} 1/2-1/2

[Event "Swedish Championship O65 2022"]
[Site "Uppsala"]
[Date "2022.07.08"]
[Round "7.4"]
[White "Dolata, Henryk"]
[Black "Malmdin, Nils-Ake"]
[Result "1-0"]
[ECO "B08"]
[WhiteElo "2055"]
[BlackElo "2124"]
[Annotator "NA"]
[PlyCount "56"]
[EventDate "2022.07.01"]
[EventType "tourn"]
[EventCountry "SWE"]
[SourceTitle "playchess.com"]
[Source "ChessBase"]
[SourceQuality "1"]
[TimeControl "40/5400+30:1800+30"]

1. e4 {[%emt 0:00:48]} d6 {[%emt 0:01:05]} 2. d4 {[%emt 0:00:13]} g6 {[%emt 0:00:34]} 3. Nc3 {[%emt 0:00:38]} Bg7 {[%emt 0:00:13]} 4. Be3 {[%emt 0:00:49]} c6 {[%emt 0:00:23]} 5. a4 {[%emt 0:01:16]} Nf6 {[%emt 0:03:23]} 6. h3 {[%emt 0:03:26]} O-O {[%emt 0:10:36]} 7. Nf3 {[%emt 0:04:59]} Qc7 {[%emt 0:13:53]} 8. Qd2 {[%emt 0:04:23]} b6 {[%emt 0:07:37]} 9. Bd3 {[%emt 0:07:02]} e5 {[%emt 0:01:02]} 10. O-O {[%emt 0:00:55]} Re8 {[%emt 0:08:58]} 11. Rae1 {[%emt 0:05:51]} a6 {[%emt 0:07:57]} 12. Nh2 {[%emt 0:08:08]} b5 {[%emt 0:06:00]} 13. axb5 {[%emt 0:14:33]} axb5 {[%emt 0:00:11]} 14. b4 {[%emt 0:06:17]} Nbd7 {[%emt 0:15:49]} 15. f4 {[%emt 0:00:17]} exd4 {[%emt 0:02:51]} 16. Bxd4 {[%emt 0:00:16]} Bb7 {[%emt 0:00:56]} 17. Qf2 {[%emt 0:06:22]} c5 {[%emt 0:04:28]} 18. bxc5 {[%emt 0:09:57]} Nxc5 {[%emt 0:05:04]} 19. Bxc5 {[%emt 0:10:38]} Qxc5 {[%emt 0:00:28]} 20. Qxc5 {[%emt 0:00:31]} dxc5 {[%emt 0:00:02]} 21. e5 {[%emt 0:01:43]} Nd5 {[%emt 0:00:33]} 22. Nxb5 {[%emt 0:00:40]} Bc6 {[%emt 0:02:46]} 23. Nd6 {[%emt 0:00:57]} Red8 {[%emt 0:00:28]} 24. Ng4 {[%emt 0:01:50]} h5 {[%emt 0:00:18]} 25. Ne3 {[%emt 0:00:32]} Nxf4 {[%emt 0:01:07]} 26. Bc4 {[%emt 0:03:25]} Bxe5 {[%emt 0:02:16]} 27. Nxf7 {[%emt 0:00:41]} Bd5 {[%emt 0:03:25]} 28. Nxe5 {[%emt 0:01:22]} Bxc4 {[%emt 0:00:10]} 1-0

[Event "Swedish Championship O65 2022"]
[Site "Uppsala"]
[Date "2022.07.09"]
[Round "8.1"]
[White "Hedin, Gunnar"]
[Black "Gillefalk, Bjorn"]
[Result "1/2-1/2"]
[ECO "A59"]
[WhiteElo "2051"]
[BlackElo "2047"]
[Annotator "NA RC"]
[PlyCount "55"]
[EventDate "2022.07.01"]
[EventType "tourn"]
[EventCountry "SWE"]
[SourceTitle "playchess.com"]
[Source "ChessBase"]
[SourceQuality "1"]
[TimeControl "40/5400+30:1800+30"]

1. d4 {[%emt 0:00:17]} Nf6 {[%emt 0:00:12]} 2. c4 {[%emt 0:00:10]} c5 {[%emt 0:00:25]} 3. d5 {[%emt 0:00:55]} b5 {[%emt 0:00:05]} 4. cxb5 {[%emt 0:00:47]} a6 {[%emt 0:00:18]} 5. bxa6 {[%emt 0:01:36]} g6 {[%emt 0:00:22]} 6. Nc3 {[%emt 0:00:37]} Bxa6 {[%emt 0:00:06]} 7. Nf3 {[%emt 0:01:32]} Bg7 {[%emt 0:00:58]} 8. e4 {[%emt 0:01:04]} Bxf1 {[%emt 0:00:07]} 9. Kxf1 {[%emt 0:00:03]} d6 {[%emt 0:00:19]} 10. g3 {[%emt 0:00:40]} O-O {[%emt 0:00:52]} 11. Kg2 {[%emt 0:00:29]} Nbd7 {[%emt 0:00:13]} 12. Bd2 {[%emt 0:07:45]} Qb6 {[%emt 0:11:21]} 13. Qc2 {[%emt 0:10:07]} Rfb8 {[%emt 0:18:02]} 14. Rhb1 {[%emt 0:06:32]} Qb4 {[%emt 0:13:31]} 15. a4 {[%emt 0:07:34]} Qb3 {[%emt 0:11:33]} 16. Ne1 {[%emt 0:24:05]} Ng4 {[%emt 0:04:29]} 17. Ra3 {[%emt 0:03:50]} Qxc2 {[%emt 0:07:14]} 18. Nxc2 {[%emt 0:00:03]} Nb6 {[%emt 0:00:13]} 19. b3 {[%emt 0:02:41]} Bxc3 {[%emt 0:03:14]} 20. Bxc3 {[%emt 0:00:11]} Nxa4 {[%emt 0:00:09]} 21. Rba1 {[%emt 0:01:10]} Nb6 {[%emt 0:00:06]} 22. Rxa8 {[%emt 0:01:41]} Rxa8 {[%emt 0:01:58]} 23. Rxa8+ {[%emt 0:00:06]} Nxa8 {[%emt 0:00:04]} 24. Ba5 {[%emt 0:00:20]} Kf8 {[%emt 0:02:44]} 25. f4 {[%emt 0:02:50]} Ke8 {[%emt 0:02:18]} 26. h3 {[%emt 0:00:14]} Nf6 {[%emt 0:00:22]} 27. Kf3 {[%emt 0:00:29]} Kd7 {[%emt 0:00:17]} 28. b4 {[%emt 0:02:12]} 1/2-1/2

[Event "Swedish Championship O65 2022"]
[Site "Uppsala"]
[Date "2022.07.09"]
[Round "8.2"]
[White "Soderberg, Per"]
[Black "Marttala, Thomas"]
[Result "1/2-1/2"]
[ECO "C44"]
[WhiteElo "2111"]
[BlackElo "2164"]
[Annotator "RC"]
[PlyCount "31"]
[EventDate "2022.07.01"]
[EventType "tourn"]
[EventCountry "SWE"]
[SourceTitle "playchess.com"]
[Source "ChessBase"]
[SourceQuality "1"]
[TimeControl "40/5400+30:1800+30"]

1. e4 {[%emt 0:00:03]} e5 {[%emt 0:02:25]} 2. Nf3 {[%emt 0:00:07]} Nc6 {[%emt 0:00:07]} 3. c3 {[%emt 0:00:06]} Nf6 {[%emt 0:12:01]} 4. d3 {[%emt 0:01:12]} g6 {[%emt 0:02:09]} 5. Be2 {[%emt 0:00:11]} Bg7 {[%emt 0:00:06]} 6. O-O {[%emt 0:00:17]} O-O {[%emt 0:00:08]} 7. h3 {[%emt 0:02:09]} d5 {[%emt 0:05:53]} 8. Qc2 {[%emt 0:00:12]} Nh5 {[%emt 0:02:25]} 9. Rd1 {[%emt 0:02:53]} Nf4 {[%emt 0:12:06]} 10. Bf1 {[%emt 0:07:11]} dxe4 {[%emt 0:00:55]} 11. dxe4 {[%emt 0:00:08]} Qf6 {[%emt 0:00:24]} 12. Bxf4 {[%emt 0:02:18]} Qxf4 {[%emt 0:06:45]} 13. Nbd2 {[%emt 0:00:22]} Kh8 {[%emt 0:09:48]} 14. g3 {[%emt 0:08:03]} Qh6 {[%emt 0:03:35]} 15. h4 {[%emt 0:00:45]} f6 {[%emt 0:04:27]} 16. Bg2 {[%emt 0:03:33]} 1/2-1/2

[Event "Swedish Championship O65 2022"]
[Site "Uppsala"]
[Date "2022.07.09"]
[Round "8.3"]
[White "Lagerborg, Krister"]
[Black "Alquist, Erik"]
[Result "1-0"]
[ECO "E36"]
[WhiteElo "2138"]
[BlackElo "1968"]
[Annotator "NA RC"]
[PlyCount "126"]
[EventDate "2022.07.01"]
[EventType "tourn"]
[EventCountry "SWE"]
[SourceTitle "playchess.com"]
[Source "ChessBase"]
[SourceQuality "1"]
[TimeControl "40/5400+30:1800+30"]

1. d4 {[%emt 0:00:06]} Nf6 {[%emt 0:00:29]} 2. c4 {[%emt 0:00:08]} e6 {[%emt 0:00:40]} 3. Nc3 {[%emt 0:00:48]} Bb4 {[%emt 0:00:08]} 4. Qc2 {[%emt 0:02:26]} O-O {[%emt 0:00:20]} 5. a3 {[%emt 0:00:30]} Bxc3+ {[%emt 0:00:19]} 6. Qxc3 {[%emt 0:00:31]} d5 {[%emt 0:00:37]} 7. Bg5 {[%emt 0:03:45]} c5 {[%emt 0:00:28]} 8. dxc5 {[%emt 0:02:37]} d4 {[%emt 0:00:10]} 9. Qf3 {[%emt 0:01:26]} Nbd7 {[%emt 0:00:21]} 10. Bxf6 {[%emt 0:05:03]} Nxf6 {[%emt 0:00:23]} 11. b4 {[%emt 0:03:38]} e5 {[%emt 0:01:42]} 12. e4 {[%emt 0:03:15]} a5 {[%emt 0:11:33]} 13. Rb1 {[%emt 0:01:27]} axb4 {[%emt 0:01:05]} 14. axb4 {[%emt 0:00:09]} Bg4 {[%emt 0:06:39]} 15. Qd3 {[%emt 0:00:19]} Qd7 {[%emt 0:00:55]} 16. f3 {[%emt 0:01:50]} Nxe4 {[%emt 0:00:39]} 17. fxe4 {[%emt 0:10:21]} f5 {[%emt 0:00:34]} 18. Qg3 {[%emt 0:02:59]} fxe4 {[%emt 0:01:22]} 19. h3 {[%emt 0:06:22]} Be6 {[%emt 0:12:41]} 20. Qxe5 {[%emt 0:09:43]} Qf7 {[%emt 0:10:16]} 21. Be2 {[%emt 0:09:00]} d3 {[%emt 0:02:56]} 22. Bxd3 {[%emt 0:02:26]} exd3 {[%emt 0:00:26]} 23. Nf3 {[%emt 0:00:51]} d2+ {[%emt 0:06:28]} 24. Kf2 {[%emt 0:02:33]} Bxc4 {[%emt 0:01:18]} 25. Rhd1 {[%emt 0:02:28]} Rae8 {[%emt 0:00:55]} 26. Qc3 {[%emt 0:01:13]} Be2 {[%emt 0:12:43]} 27. Rxd2 {[%emt 0:01:34]} Bxf3 {[%emt 0:00:16]} 28. gxf3 {[%emt 0:00:11]} Qh5 {[%emt 0:00:41]} 29. Qc4+ {[%emt 0:01:17]} Kh8 {[%emt 0:00:25]} 30. Qg4 {[%emt 0:00:33]} Qh6 {[%emt 0:01:12]} 31. Rbd1 {[%emt 0:00:43]} Qe3+ {[%emt 0:03:26]} 32. Kg2 {[%emt 0:01:41]} Rf4 {[%emt 0:00:40]} 33. Qg3 {[%emt 0:00:46]} Ref8 {[%emt 0:10:55]} 34. Rd3 {[%emt 0:02:34]} Qe2+ {[%emt 0:01:02]} 35. Qf2 {[%emt 0:00:46]} Qxf2+ {[%emt 0:02:48]} 36. Kxf2 {[%emt 0:00:07]} Rxb4 {[%emt 0:00:26]} 37. Rd8 {[%emt 0:00:29]} Kg8 {[%emt 0:02:22]} 38. Rxf8+ {[%emt 0:00:30]} Kxf8 {[%emt 0:00:08]} 39. Rd7 {[%emt 0:00:18]} h5 {[%emt 0:06:13]} 40. Ke3 {[%emt 0:01:37]} g5 {[%emt 0:02:13]} 41. Rd5 {[%emt 0:32:22]} g4 {[%emt 0:01:47]} 42. Rxh5 {[%emt 0:00:00]} Rb3+ {[%emt 0:00:50]} 43. Ke4 {[%emt 0:00:00]} gxf3 {[%emt 0:04:24]} 44. Rf5+ {[%emt 0:00:00]} Ke7 {[%emt 0:00:27]} 45. Rxf3 {[%emt 0:00:00]} Rb1 {[%emt 0:00:14]} 46. Kd5 {[%emt 0:00:00]} Rd1+ {[%emt 0:01:41]} 47. Kc4 {[%emt 0:00:00]} Rc1+ {[%emt 0:01:07]} 48. Rc3 {[%emt 0:00:00]} Rd1 {[%emt 0:01:09]} 49. Re3+ {[%emt 0:00:00]} Kf7 {[%emt 0:00:54]} 50. Re4 {[%emt 0:00:00]} Kf6 {[%emt 0:01:59]} 51. h4 {[%emt 0:00:00]} Rd7 {[%emt 0:00:41]} 52. Rd4 {[%emt 0:00:00]} Rh7 {[%emt 0:02:18]} 53. Kb5 {[%emt 0:00:00]} Ke7 {[%emt 0:01:40]} 54. Kb6 {[%emt 0:00:00]} Ke8 {[%emt 0:00:26]} 55. Rg4 {[%emt 0:00:00]} Re7 {[%emt 0:03:57]} 56. Rg8+ {[%emt 0:00:00]} Kd7 {[%emt 0:02:00]} 57. Rb8 {[%emt 0:00:00]} Re6+ {[%emt 0:00:40]} 58. Kxb7 {[%emt 0:00:00]} Rh6 {[%emt 0:01:04]} 59. Rg8 {[%emt 0:00:00]} Rxh4 {[%emt 0:01:02]} 60. c6+ {[%emt 0:00:00]} Kd6 {[%emt 0:00:11]} 61. Rg6+ {[%emt 0:00:00]} Kc5 {[%emt 0:00:35]} 62. c7 {[%emt 0:00:00]} Rb4+ {[%emt 0:00:24]} 63. Ka7 {[%emt 0:02:39]} Kd5 {[%emt 0:04:13]} 1-0

[Event "Swedish Championship O65 2022"]
[Site "Uppsala"]
[Date "2022.07.09"]
[Round "8.4"]
[White "Dolata, Henryk"]
[Black "Bellon Lopez, Juan Manuel"]
[Result "0-1"]
[ECO "B15"]
[WhiteElo "2055"]
[BlackElo "2330"]
[Annotator "RC"]
[PlyCount "80"]
[EventDate "2022.07.01"]
[EventType "tourn"]
[EventCountry "SWE"]
[SourceTitle "playchess.com"]
[Source "ChessBase"]
[SourceQuality "1"]
[TimeControl "40/5400+30:1800+30"]

1. e4 {[%emt 0:00:00]} c6 {[%emt 0:01:04]} 2. d4 {[%emt 0:01:28]} d5 {[%emt 0:00:06]} 3. Nc3 {[%emt 0:00:12]} dxe4 {[%emt 0:00:06]} 4. Nxe4 {[%emt 0:00:10]} Nf6 {[%emt 0:00:04]} 5. Nxf6+ {[%emt 0:03:25]} exf6 {[%emt 0:00:10]} 6. g3 {[%emt 0:04:40]} h5 {[%emt 0:02:24]} 7. h4 {[%emt 0:08:31]} Qd5 {[%emt 0:05:42]} 8. Rh2 {[%emt 0:04:50]} Be6 {[%emt 0:07:53]} 9. Be3 {[%emt 0:03:42]} Nd7 {[%emt 0:07:37]} 10. Ne2 {[%emt 0:05:07]} Bd6 {[%emt 0:03:18]} 11. Nf4 {[%emt 0:12:23]} Bxf4 {[%emt 0:00:13]} 12. Bxf4 {[%emt 0:00:03]} O-O {[%emt 0:01:28]} 13. Be2 {[%emt 0:28:41]} Rfe8 {[%emt 0:03:36]} 14. Kf1 {[%emt 0:03:48]} Nb6 {[%emt 0:12:52]} 15. b3 {[%emt 0:02:35]} g6 {[%emt 0:09:22]} 16. c4 {[%emt 0:00:35]} Qd7 {[%emt 0:00:16]} 17. Kg2 {[%emt 0:02:29]} Rad8 {[%emt 0:00:52]} 18. Be3 {[%emt 0:00:03]} Bg4 {[%emt 0:05:44]} 19. Bxg4 {[%emt 0:00:31]} hxg4 {[%emt 0:01:55]} 20. Rh1 {[%emt 0:01:26]} Qf5 {[%emt 0:01:00]} 21. Re1 {[%emt 0:00:29]} Re4 {[%emt 0:00:16]} 22. Rc1 {[%emt 0:01:42]} Nd7 {[%emt 0:02:03]} 23. f3 {[%emt 0:01:59]} gxf3+ {[%emt 0:01:17]} 24. Qxf3 {[%emt 0:00:02]} Qe6 {[%emt 0:02:14]} 25. Bf2 {[%emt 0:00:25]} f5 {[%emt 0:00:07]} 26. Rxe4 {[%emt 0:02:37]} fxe4 {[%emt 0:00:10]} 27. Qf4 {[%emt 0:00:23]} Nf6 {[%emt 0:04:12]} 28. Re1 {[%emt 0:01:51]} Re8 {[%emt 0:02:58]} 29. Bg1 {[%emt 0:05:46]} b5 {[%emt 0:03:37]} 30. d5 {[%emt 0:01:40]} cxd5 {[%emt 0:01:22]} 31. Bd4 {[%emt 0:00:08]} Ng4 {[%emt 0:03:26]} 32. cxb5 {[%emt 0:00:47]} Ne5 {[%emt 0:04:05]} 33. Re2 {[%emt 0:01:08]} Re7 {[%emt 0:03:44]} 34. a4 {[%emt 0:01:10]} Nd3 {[%emt 0:05:14]} 35. Qh6 {[%emt 0:01:15]} f5 {[%emt 0:03:09]} 36. Rc2 {[%emt 0:01:24]} Ne1+ {[%emt 0:00:14]} 37. Kh1 {[%emt 0:00:09]} Nxc2 {[%emt 0:00:08]} 38. Qh8+ {[%emt 0:00:04]} Kf7 {[%emt 0:00:06]} 39. a5 {[%emt 0:00:19]} Nxd4 {[%emt 0:00:26]} 40. Qxd4 {[%emt 0:00:01]} e3 {[%emt 0:00:07]} 0-1